[Event "Titled Tuesday Blitz April 4 Late 2023"]
[White "Dudzinski, Pawel"]
[Black "Cuenca Jimenez, Jose Fernando"]
[WhiteFideId "1117890"]
[BlackFideId "2255570"]
[WhiteElo "2099"]
[BlackElo "2429"]
[Result "0-1"]
[Round "07"]
[TimeControl "180+2"]
[Date "2023.04.04"]
[WhiteClock "0:00:07"]
[BlackClock "0:00:07"]

1. e4 {[%clk 0:02:55]}  d6 {[%clk 0:02:59]} 2. Nc3 {[%clk 0:02:50]}  Nf6 {[%clk 0:02:59]} 3. g3 {[%clk 0:02:50]}  e5 {[%clk 0:02:59]} 4. Bg2 {[%clk 0:02:50]}  Be7 {[%clk 0:03:00]} 5. Nge2 {[%clk 0:02:51]}  O-O {[%clk 0:03:00]} 6. d4 {[%clk 0:02:50]}  c6 {[%clk 0:02:56]} 7. a4 {[%clk 0:02:49]}  a5 {[%clk 0:02:57]} 8. h3 {[%clk 0:02:50]}  Na6 {[%clk 0:02:57]} 9. O-O {[%clk 0:02:49]}  Nb4 {[%clk 0:02:57]} 10. b3 {[%clk 0:02:47]}  exd4 {[%clk 0:02:44]} 11. Nxd4 {[%clk 0:02:46]}  d5 {[%clk 0:02:43]} 12. e5 {[%clk 0:02:42]}  Nd7 {[%clk 0:02:41]} 13. e6 {[%clk 0:02:37]}  Nc5 {[%clk 0:02:34]} 14. exf7+ {[%clk 0:02:38]}  Rxf7 {[%clk 0:02:34]} 15. Re1 {[%clk 0:02:23]}  Bf6 {[%clk 0:02:33]} 16. Be3 {[%clk 0:02:16]}  Qf8 {[%clk 0:02:19]} 17. Kh2 {[%clk 0:01:56]}  Bd7 {[%clk 0:02:18]} 18. Na2 {[%clk 0:01:41]}  Re8 {[%clk 0:02:06]} 19. Nxb4 {[%clk 0:01:40]}  axb4 {[%clk 0:02:06]} 20. Rc1 {[%clk 0:01:28]}  Ne4 {[%clk 0:02:04]} 21. f3 {[%clk 0:01:13]}  Nc3 {[%clk 0:01:43]} 22. Qd2 {[%clk 0:01:07]}  c5 {[%clk 0:01:25]} 23. Ne2 {[%clk 0:00:59]}  d4 {[%clk 0:01:18]} 24. Bf2 {[%clk 0:00:58]}  Nd5 {[%clk 0:01:07]} 25. f4 {[%clk 0:00:53]}  Bc6 {[%clk 0:00:55]} 26. Ng1 {[%clk 0:00:49]}  Rfe7 {[%clk 0:00:50]} 27. Rxe7 {[%clk 0:00:46]}  Rxe7 {[%clk 0:00:44]} 28. Re1 {[%clk 0:00:47]}  Qe8 {[%clk 0:00:30]} 29. Rxe7 {[%clk 0:00:46]}  Qxe7 {[%clk 0:00:31]} 30. Qe2 {[%clk 0:00:43]}  Qxe2 {[%clk 0:00:25]} 31. Nxe2 {[%clk 0:00:44]}  Kf7 {[%clk 0:00:18]} 32. g4 {[%clk 0:00:41]}  h6 {[%clk 0:00:13]} 33. Kg3 {[%clk 0:00:42]}  Ke6 {[%clk 0:00:12]} 34. Be4 {[%clk 0:00:37]}  Kd6 {[%clk 0:00:10]} 35. Kf3 {[%clk 0:00:35]}  Ne7 {[%clk 0:00:09]} 36. Bg3 {[%clk 0:00:31]}  Kd7 {[%clk 0:00:07]} 37. f5 {[%clk 0:00:30]}  Nd5 {[%clk 0:00:06]} 38. Bf2 {[%clk 0:00:20]}  Bg5 {[%clk 0:00:06]} 39. Bg1 {[%clk 0:00:19]}  Bf6 {[%clk 0:00:04]} 40. Nf4 {[%clk 0:00:19]}  Ne7 {[%clk 0:00:03]} 41. Bxc6+ {[%clk 0:00:18]}  Nxc6 {[%clk 0:00:03]} 42. Nd5 {[%clk 0:00:17]}  Kd6 {[%clk 0:00:03]} 43. Nxf6 {[%clk 0:00:16]}  gxf6 {[%clk 0:00:04]} 44. Bh2+ {[%clk 0:00:16]}  Kd5 {[%clk 0:00:04]} 45. Bf4 {[%clk 0:00:16]}  Ne5+ {[%clk 0:00:03]} 46. Ke2 {[%clk 0:00:15]}  Nf7 {[%clk 0:00:04]} 47. Kd3 {[%clk 0:00:14]}  Ne5+ {[%clk 0:00:03]} 48. Ke2 {[%clk 0:00:13]}  Nf7 {[%clk 0:00:04]} 49. h4 {[%clk 0:00:13]}  c4 {[%clk 0:00:03]} 50. bxc4+ {[%clk 0:00:12]}  Kxc4 {[%clk 0:00:04]} 51. Kd2 {[%clk 0:00:13]}  b3 {[%clk 0:00:04]} 52. cxb3+ {[%clk 0:00:11]}  Kxb3 {[%clk 0:00:05]} 53. a5 {[%clk 0:00:11]}  Kc4 {[%clk 0:00:04]} 54. Bc7 {[%clk 0:00:11]}  Kd5 {[%clk 0:00:04]} 55. Kd3 {[%clk 0:00:11]}  Ne5+ {[%clk 0:00:04]} 56. Bxe5 {[%clk 0:00:10]}  Kxe5 {[%clk 0:00:04]} 57. h5 {[%clk 0:00:03]}  Kd5 {[%clk 0:00:04]} 58. g5 {[%clk 0:00:02]}  fxg5 {[%clk 0:00:04]} 59. f6 {[%clk 0:00:02]}  Ke6 {[%clk 0:00:04]} 60. Kxd4 {[%clk 0:00:03]}  Kxf6 {[%clk 0:00:05]} 61. a6 {[%clk 0:00:04]}  bxa6 {[%clk 0:00:04]} 62. Kc5 {[%clk 0:00:04]}  g4 {[%clk 0:00:04]} 63. Kb4 {[%clk 0:00:05]}  g3 {[%clk 0:00:05]} 64. Ka5 {[%clk 0:00:05]}  g2 {[%clk 0:00:06]} 65. Kxa6 {[%clk 0:00:06]}  g1=Q {[%clk 0:00:07]} 66. Kb5 {[%clk 0:00:07]}  Qc1 {[%clk 0:00:07]} 0-1


[Site "https://www.chess.com"]

[Event "Titled Tuesday Blitz April 4 Late 2023"]
[White "Goroshkov, Maksym"]
[Black "Erzhanov, Arman"]
[WhiteFideId "14142716"]
[BlackFideId "4138821"]
[WhiteElo "2322"]
[BlackElo "2138"]
[Result "1-0"]
[Round "07"]
[TimeControl "180+2"]
[Date "2023.04.04"]
[WhiteClock "0:00:08"]
[BlackClock "0:00:11"]

1. e4 {[%clk 0:03:00]}  d6 {[%clk 0:02:16]} 2. d4 {[%clk 0:02:58]}  Nf6 {[%clk 0:02:16]} 3. Nc3 {[%clk 0:02:59]}  c6 {[%clk 0:02:17]} 4. f4 {[%clk 0:02:57]}  d5 {[%clk 0:02:15]} 5. e5 {[%clk 0:02:56]}  Ng8 {[%clk 0:02:16]} 6. Nf3 {[%clk 0:02:56]}  h5 {[%clk 0:02:17]} 7. Bd3 {[%clk 0:02:56]}  g6 {[%clk 0:02:16]} 8. O-O {[%clk 0:02:56]}  Nh6 {[%clk 0:02:17]} 9. Nh4 {[%clk 0:02:53]}  Nf5 {[%clk 0:02:15]} 10. Nxf5 {[%clk 0:02:50]}  Bxf5 {[%clk 0:02:15]} 11. Bxf5 {[%clk 0:02:50]}  gxf5 {[%clk 0:02:16]} 12. Be3 {[%clk 0:02:42]}  e6 {[%clk 0:02:16]} 13. Ne2 {[%clk 0:02:32]}  Nd7 {[%clk 0:02:14]} 14. b3 {[%clk 0:02:24]}  h4 {[%clk 0:02:08]} 15. c4 {[%clk 0:02:22]}  Be7 {[%clk 0:01:53]} 16. Rc1 {[%clk 0:02:17]}  Nb6 {[%clk 0:01:51]} 17. a4 {[%clk 0:02:11]}  Rg8 {[%clk 0:01:47]} 18. a5 {[%clk 0:02:05]}  Nd7 {[%clk 0:01:43]} 19. Qd2 {[%clk 0:02:05]}  Nb8 {[%clk 0:01:41]} 20. c5 {[%clk 0:01:42]}  Nd7 {[%clk 0:01:34]} 21. b4 {[%clk 0:01:37]}  a6 {[%clk 0:01:34]} 22. Nc3 {[%clk 0:01:35]}  Rg6 {[%clk 0:01:31]} 23. Kh1 {[%clk 0:01:31]}  Kf8 {[%clk 0:01:28]} 24. Qe2 {[%clk 0:01:15]}  Kg7 {[%clk 0:01:26]} 25. Kg1 {[%clk 0:01:08]}  Qh8 {[%clk 0:01:27]} 26. Kf2 {[%clk 0:01:07]}  Rg8 {[%clk 0:01:27]} 27. Ke1 {[%clk 0:01:06]}  Kf8 {[%clk 0:01:28]} 28. Rg1 {[%clk 0:01:03]}  Qg7 {[%clk 0:01:27]} 29. Rc2 {[%clk 0:01:02]}  Rg4 {[%clk 0:01:23]} 30. Kd1 {[%clk 0:01:00]}  Ke8 {[%clk 0:01:20]} 31. Kc1 {[%clk 0:00:58]}  Kd8 {[%clk 0:01:19]} 32. Kb1 {[%clk 0:00:55]}  Nf8 {[%clk 0:01:18]} 33. Kb2 {[%clk 0:00:49]}  Nd7 {[%clk 0:01:15]} 34. Kb1 {[%clk 0:00:48]}  Ke8 {[%clk 0:01:15]} 35. Kb2 {[%clk 0:00:48]}  Bd8 {[%clk 0:01:16]} 36. Bc1 {[%clk 0:00:39]}  Qh6 {[%clk 0:01:15]} 37. Nd1 {[%clk 0:00:33]}  R4g6 {[%clk 0:01:12]} 38. Be3 {[%clk 0:00:27]}  Kf8 {[%clk 0:01:10]} 39. Nc3 {[%clk 0:00:26]}  Kg7 {[%clk 0:01:09]} 40. Nd1 {[%clk 0:00:25]}  Kh7 {[%clk 0:01:10]} 41. Nc3 {[%clk 0:00:26]}  Nf8 {[%clk 0:01:09]} 42. Nd1 {[%clk 0:00:25]}  Rg4 {[%clk 0:01:09]} 43. Kb1 {[%clk 0:00:21]}  Ng6 {[%clk 0:01:05]} 44. h3 {[%clk 0:00:21]}  Rg3 {[%clk 0:01:00]} 45. Qf2 {[%clk 0:00:20]}  Qh5 {[%clk 0:00:45]} 46. Kc1 {[%clk 0:00:18]}  Be7 {[%clk 0:00:46]} 47. Rd2 {[%clk 0:00:18]}  Bf8 {[%clk 0:00:46]} 48. Nc3 {[%clk 0:00:15]}  Bh6 {[%clk 0:00:46]} 49. Ne2 {[%clk 0:00:16]}  Ne7 {[%clk 0:00:25]} 50. Nxg3 {[%clk 0:00:14]}  hxg3 {[%clk 0:00:24]} 51. Qe2 {[%clk 0:00:13]}  Qh4 {[%clk 0:00:24]} 52. Qf3 {[%clk 0:00:12]}  Ng6 {[%clk 0:00:22]} 53. Rf1 {[%clk 0:00:13]}  Rg7 {[%clk 0:00:21]} 54. Re2 {[%clk 0:00:11]}  Rg8 {[%clk 0:00:22]} 55. Bd2 {[%clk 0:00:11]}  Rg7 {[%clk 0:00:21]} 56. Qb3 {[%clk 0:00:11]}  Rg8 {[%clk 0:00:20]} 57. Re3 {[%clk 0:00:11]}  Nxf4 {[%clk 0:00:19]} 58. Ref3 {[%clk 0:00:03]}  Nxg2 {[%clk 0:00:18]} 59. Bxh6 {[%clk 0:00:04]}  Qxh6+ {[%clk 0:00:18]} 60. Kb2 {[%clk 0:00:05]}  f4 {[%clk 0:00:18]} 61. Qc2+ {[%clk 0:00:03]}  Qg6 {[%clk 0:00:14]} 62. Qxg2 {[%clk 0:00:04]}  Qe4 {[%clk 0:00:15]} 63. Qc2 {[%clk 0:00:04]}  g2 {[%clk 0:00:15]} 64. Rg1 {[%clk 0:00:04]}  Rg3 {[%clk 0:00:10]} 65. Qxe4+ {[%clk 0:00:05]}  dxe4 {[%clk 0:00:11]} 66. Rxf4 {[%clk 0:00:05]}  e3 {[%clk 0:00:10]} 67. Rxf7+ {[%clk 0:00:05]}  Kg6 {[%clk 0:00:10]} 68. Rf6+ {[%clk 0:00:06]}  Kg5 {[%clk 0:00:11]} 69. Kc2 {[%clk 0:00:07]}  e2 {[%clk 0:00:09]} 70. Kd2 {[%clk 0:00:07]}  e1=Q+ {[%clk 0:00:09]} 71. Kxe1 {[%clk 0:00:08]}  Kh4 {[%clk 0:00:10]} 72. Kf2 {[%clk 0:00:08]}  Kxh3 {[%clk 0:00:10]} 73. Rh6+ {[%clk 0:00:07]}  Kg4 {[%clk 0:00:11]} 74. Rg6+ {[%clk 0:00:08]}  Kf5 {[%clk 0:00:11]} 75. Rxg3 {[%clk 0:00:08]} 1-0


[Site "https://www.chess.com"]

[Event "Titled Tuesday Blitz April 4 Late 2023"]
[White "QuiesPrecatio"]
[Black "Mendez Fortes, Eduardo Jesus"]
[BlackFideId "3502376"]
[WhiteElo "2459"]
[BlackElo "2307"]
[Result "1-0"]
[Round "07"]
[TimeControl "180+2"]
[Date "2023.04.04"]
[WhiteClock "0:01:08"]
[BlackClock "0:00:47"]

1. d4 {[%clk 0:02:53]}  Nf6 {[%clk 0:02:59]} 2. c4 {[%clk 0:02:48]}  e6 {[%clk 0:03:00]} 3. Nc3 {[%clk 0:02:47]}  Bb4 {[%clk 0:03:00]} 4. Qc2 {[%clk 0:02:47]}  O-O {[%clk 0:03:00]} 5. e4 {[%clk 0:02:46]}  d5 {[%clk 0:03:00]} 6. e5 {[%clk 0:02:47]}  Ne4 {[%clk 0:03:01]} 7. Bd3 {[%clk 0:02:47]}  c5 {[%clk 0:03:01]} 8. Nf3 {[%clk 0:02:47]}  cxd4 {[%clk 0:03:02]} 9. Nxd4 {[%clk 0:02:48]}  Nd7 {[%clk 0:02:55]} 10. Bf4 {[%clk 0:02:48]}  Qh4 {[%clk 0:02:55]} 11. g3 {[%clk 0:02:48]}  Qh5 {[%clk 0:02:55]} 12. Bxe4 {[%clk 0:02:29]}  dxe4 {[%clk 0:02:51]} 13. Qxe4 {[%clk 0:02:30]}  Nc5 {[%clk 0:02:38]} 14. Qe2 {[%clk 0:02:29]}  Bxc3+ {[%clk 0:02:38]} 15. bxc3 {[%clk 0:02:28]}  Qg6 {[%clk 0:02:36]} 16. O-O {[%clk 0:02:27]}  a6 {[%clk 0:02:22]} 17. Nb3 {[%clk 0:02:26]}  Nd3 {[%clk 0:02:06]} 18. Bc1 {[%clk 0:02:12]}  b6 {[%clk 0:01:51]} 19. Ba3 {[%clk 0:02:09]}  Rd8 {[%clk 0:01:50]} 20. f4 {[%clk 0:02:02]}  Bb7 {[%clk 0:01:46]} 21. Rad1 {[%clk 0:02:00]}  Be4 {[%clk 0:01:35]} 22. Bd6 {[%clk 0:01:52]}  Bf5 {[%clk 0:01:29]} 23. Nd4 {[%clk 0:01:49]}  Be4 {[%clk 0:01:24]} 24. f5 {[%clk 0:01:48]}  exf5 {[%clk 0:01:23]} 25. Rxd3 {[%clk 0:01:48]}  Bxd3 {[%clk 0:01:21]} 26. Qxd3 {[%clk 0:01:49]}  b5 {[%clk 0:01:19]} 27. c5 {[%clk 0:01:48]}  f6 {[%clk 0:01:16]} 28. e6 {[%clk 0:01:48]}  Re8 {[%clk 0:01:11]} 29. Qf3 {[%clk 0:01:45]}  Rac8 {[%clk 0:01:10]} 30. Qd5 {[%clk 0:01:45]}  Kh8 {[%clk 0:01:08]} 31. e7 {[%clk 0:01:42]}  Qg5 {[%clk 0:01:02]} 32. Bf4 {[%clk 0:01:14]}  Qg6 {[%clk 0:01:01]} 33. Nxf5 {[%clk 0:01:14]}  Qh5 {[%clk 0:00:56]} 34. Qe6 {[%clk 0:01:08]}  g6 {[%clk 0:00:47]} 35. Qxf6+ {[%clk 0:01:08]} 1-0


[Site "https://www.chess.com"]

[Event "Titled Tuesday Blitz April 4 Late 2023"]
[White "Janaszak, Dawid"]
[Black "Rizzo, Tobias"]
[WhiteFideId "1119206"]
[BlackFideId "30942691"]
[WhiteElo "2220"]
[BlackElo "2458"]
[Result "1-0"]
[Round "07"]
[TimeControl "180+2"]
[Date "2023.04.04"]
[WhiteClock "0:00:10"]
[BlackClock "0:00:05"]

1. e4 {[%clk 0:03:00]}  c5 {[%clk 0:02:59]} 2. Nc3 {[%clk 0:03:00]}  Nc6 {[%clk 0:02:59]} 3. f4 {[%clk 0:02:59]}  e6 {[%clk 0:02:59]} 4. Nf3 {[%clk 0:02:59]}  Nf6 {[%clk 0:03:00]} 5. Bb5 {[%clk 0:02:58]}  Nd4 {[%clk 0:02:55]} 6. e5 {[%clk 0:02:56]}  Nxb5 {[%clk 0:02:45]} 7. Nxb5 {[%clk 0:02:51]}  Nd5 {[%clk 0:02:45]} 8. O-O {[%clk 0:02:49]}  a6 {[%clk 0:02:31]} 9. Nc3 {[%clk 0:02:48]}  Nxc3 {[%clk 0:02:25]} 10. bxc3 {[%clk 0:02:48]}  Be7 {[%clk 0:02:24]} 11. d4 {[%clk 0:02:47]}  d5 {[%clk 0:02:24]} 12. Be3 {[%clk 0:02:41]}  Qa5 {[%clk 0:02:18]} 13. c4 {[%clk 0:02:23]}  dxc4 {[%clk 0:02:08]} 14. f5 {[%clk 0:02:23]}  exf5 {[%clk 0:02:00]} 15. d5 {[%clk 0:02:21]}  O-O {[%clk 0:01:58]} 16. a4 {[%clk 0:02:03]}  Rd8 {[%clk 0:01:54]} 17. d6 {[%clk 0:02:02]}  Be6 {[%clk 0:01:51]} 18. Bd2 {[%clk 0:01:48]}  c3 {[%clk 0:01:48]} 19. dxe7 {[%clk 0:01:48]}  Rxd2 {[%clk 0:01:46]} 20. Nxd2 {[%clk 0:01:44]}  cxd2 {[%clk 0:01:47]} 21. Rf2 {[%clk 0:01:36]}  Qc7 {[%clk 0:01:43]} 22. Qxd2 {[%clk 0:01:33]}  Qxe7 {[%clk 0:01:43]} 23. Qd6 {[%clk 0:01:32]}  Qxd6 {[%clk 0:01:23]} 24. exd6 {[%clk 0:01:31]}  Rd8 {[%clk 0:01:24]} 25. Rd2 {[%clk 0:01:31]}  g6 {[%clk 0:01:14]} 26. Rb1 {[%clk 0:01:27]}  Rd7 {[%clk 0:01:14]} 27. Kf2 {[%clk 0:01:09]}  f6 {[%clk 0:01:07]} 28. Rb6 {[%clk 0:01:03]}  Kf7 {[%clk 0:01:04]} 29. Rd1 {[%clk 0:01:01]}  g5 {[%clk 0:00:46]} 30. Rdb1 {[%clk 0:01:01]}  Bd5 {[%clk 0:00:45]} 31. Rd1 {[%clk 0:00:44]}  Bc6 {[%clk 0:00:41]} 32. a5 {[%clk 0:00:39]}  Ke6 {[%clk 0:00:41]} 33. Rb3 {[%clk 0:00:36]}  Rxd6 {[%clk 0:00:35]} 34. Rxd6+ {[%clk 0:00:32]}  Kxd6 {[%clk 0:00:35]} 35. Rh3 {[%clk 0:00:33]}  Be4 {[%clk 0:00:28]} 36. Rxh7 {[%clk 0:00:24]}  c4 {[%clk 0:00:26]} 37. Rf7 {[%clk 0:00:21]}  Ke6 {[%clk 0:00:24]} 38. Rc7 {[%clk 0:00:21]}  Bxc2 {[%clk 0:00:18]} 39. Rxc4 {[%clk 0:00:17]}  Be4 {[%clk 0:00:18]} 40. g3 {[%clk 0:00:15]}  Bc6 {[%clk 0:00:18]} 41. Ke3 {[%clk 0:00:14]}  Kd5 {[%clk 0:00:18]} 42. Rc1 {[%clk 0:00:13]}  Ke5 {[%clk 0:00:18]} 43. Rc2 {[%clk 0:00:12]}  Ke6 {[%clk 0:00:14]} 44. Rf2 {[%clk 0:00:12]}  Ke5 {[%clk 0:00:14]} 45. h4 {[%clk 0:00:12]}  Ke6 {[%clk 0:00:06]} 46. Kd4 {[%clk 0:00:10]}  f4 {[%clk 0:00:03]} 47. gxf4 {[%clk 0:00:10]}  gxh4 {[%clk 0:00:02]} 48. f5+ {[%clk 0:00:10]}  Kd6 {[%clk 0:00:02]} 49. Rh2 {[%clk 0:00:11]}  Bd7 {[%clk 0:00:01]} 50. Ke4 {[%clk 0:00:09]}  Bc6+ {[%clk 0:00:01]} 51. Kf4 {[%clk 0:00:09]}  Kc5 {[%clk 0:00:02]} 52. Rxh4 {[%clk 0:00:09]}  Kb4 {[%clk 0:00:03]} 53. Rh6 {[%clk 0:00:10]}  Kxa5 {[%clk 0:00:03]} 54. Rxf6 {[%clk 0:00:10]}  Kb4 {[%clk 0:00:03]} 55. Rxc6 {[%clk 0:00:10]}  bxc6 {[%clk 0:00:03]} 56. Ke5 {[%clk 0:00:10]}  a5 {[%clk 0:00:03]} 57. f6 {[%clk 0:00:10]}  a4 {[%clk 0:00:04]} 58. f7 {[%clk 0:00:11]}  a3 {[%clk 0:00:04]} 59. f8=Q+ {[%clk 0:00:12]}  Kb3 {[%clk 0:00:05]} 60. Qf7+ {[%clk 0:00:11]}  Kb2 {[%clk 0:00:05]} 61. Qf2+ {[%clk 0:00:12]}  Kb1 {[%clk 0:00:05]} 62. Qe1+ {[%clk 0:00:12]}  Kb2 {[%clk 0:00:06]} 63. Qd2+ {[%clk 0:00:12]}  Kb1 {[%clk 0:00:06]} 64. Qd3+ {[%clk 0:00:12]}  Kb2 {[%clk 0:00:07]} 65. Qd2+ {[%clk 0:00:11]}  Kb1 {[%clk 0:00:07]} 66. Qc3 {[%clk 0:00:09]}  a2 {[%clk 0:00:07]} 67. Qb3+ {[%clk 0:00:09]}  Ka1 {[%clk 0:00:06]} 68. Qc2 {[%clk 0:00:09]}  c5 {[%clk 0:00:05]} 69. Qc1# {[%clk 0:00:10]} 1-0


[Site "https://www.chess.com"]

[Event "Titled Tuesday Blitz April 4 Late 2023"]
[White "Romanchuk, Viktor"]
[Black "Kukula, Pawel"]
[WhiteFideId "14109271"]
[BlackFideId "1115081"]
[WhiteElo "2242"]
[BlackElo "2012"]
[Result "1-0"]
[Round "07"]
[TimeControl "180+2"]
[Date "2023.04.04"]
[WhiteClock "0:00:09"]
[BlackClock "0:00:17"]

1. d4 {[%clk 0:03:00]}  e6 {[%clk 0:02:59]} 2. c4 {[%clk 0:03:00]}  f5 {[%clk 0:02:59]} 3. g3 {[%clk 0:03:00]}  Nf6 {[%clk 0:02:59]} 4. Bg2 {[%clk 0:03:00]}  Be7 {[%clk 0:03:00]} 5. Nf3 {[%clk 0:03:00]}  d6 {[%clk 0:03:00]} 6. b3 {[%clk 0:02:57]}  O-O {[%clk 0:03:00]} 7. Bb2 {[%clk 0:02:57]}  Ne4 {[%clk 0:03:00]} 8. Nbd2 {[%clk 0:02:57]}  Bf6 {[%clk 0:03:00]} 9. O-O {[%clk 0:02:56]}  Nc6 {[%clk 0:02:57]} 10. a3 {[%clk 0:02:49]}  a5 {[%clk 0:02:55]} 11. Qc2 {[%clk 0:02:47]}  Nxd2 {[%clk 0:02:52]} 12. Qxd2 {[%clk 0:02:48]}  e5 {[%clk 0:02:49]} 13. dxe5 {[%clk 0:02:48]}  dxe5 {[%clk 0:02:50]} 14. Qd5+ {[%clk 0:02:47]}  Kh8 {[%clk 0:02:49]} 15. Rfd1 {[%clk 0:02:42]}  Qe8 {[%clk 0:02:43]} 16. Rab1 {[%clk 0:02:30]}  Be6 {[%clk 0:02:41]} 17. Qb5 {[%clk 0:02:26]}  Bc8 {[%clk 0:02:24]} 18. e3 {[%clk 0:02:17]}  a4 {[%clk 0:02:05]} 19. b4 {[%clk 0:02:02]}  e4 {[%clk 0:01:47]} 20. Bxf6 {[%clk 0:01:45]}  exf3 {[%clk 0:01:44]} 21. Bxg7+ {[%clk 0:01:37]}  Kxg7 {[%clk 0:01:44]} 22. Bxf3 {[%clk 0:01:37]}  Ne5 {[%clk 0:01:41]} 23. Bg2 {[%clk 0:01:31]}  Qxb5 {[%clk 0:01:37]} 24. cxb5 {[%clk 0:01:32]}  Rb8 {[%clk 0:01:33]} 25. Rbc1 {[%clk 0:01:30]}  Rf7 {[%clk 0:01:33]} 26. Rd8 {[%clk 0:01:22]}  Re7 {[%clk 0:01:17]} 27. h3 {[%clk 0:01:17]}  Nf7 {[%clk 0:01:17]} 28. Rd5 {[%clk 0:01:10]}  Be6 {[%clk 0:01:16]} 29. Rdc5 {[%clk 0:01:10]}  c6 {[%clk 0:01:07]} 30. bxc6 {[%clk 0:01:08]}  bxc6 {[%clk 0:01:08]} 31. Bxc6 {[%clk 0:01:06]}  Bb3 {[%clk 0:01:02]} 32. Rxf5 {[%clk 0:01:04]}  Ne5 {[%clk 0:00:58]} 33. b5 {[%clk 0:00:47]}  Rd8 {[%clk 0:00:56]} 34. g4 {[%clk 0:00:42]}  Nxc6 {[%clk 0:00:48]} 35. bxc6 {[%clk 0:00:40]}  Rc7 {[%clk 0:00:47]} 36. Rb5 {[%clk 0:00:35]}  Rdc8 {[%clk 0:00:42]} 37. Rbc5 {[%clk 0:00:35]}  Kf6 {[%clk 0:00:42]} 38. f4 {[%clk 0:00:33]}  Ke6 {[%clk 0:00:42]} 39. e4 {[%clk 0:00:33]}  Rb8 {[%clk 0:00:39]} 40. f5+ {[%clk 0:00:31]}  Ke7 {[%clk 0:00:35]} 41. e5 {[%clk 0:00:31]}  Bf7 {[%clk 0:00:27]} 42. Kf2 {[%clk 0:00:22]}  Be8 {[%clk 0:00:28]} 43. Ke3 {[%clk 0:00:20]}  Rb3+ {[%clk 0:00:28]} 44. R1c3 {[%clk 0:00:19]}  Rb1 {[%clk 0:00:18]} 45. Kf4 {[%clk 0:00:18]}  h6 {[%clk 0:00:17]} 46. h4 {[%clk 0:00:18]}  Rf1+ {[%clk 0:00:17]} 47. Ke4 {[%clk 0:00:16]}  Rg1 {[%clk 0:00:16]} 48. Kf4 {[%clk 0:00:16]}  Rf1+ {[%clk 0:00:16]} 49. Ke4 {[%clk 0:00:16]}  Re1+ {[%clk 0:00:17]} 50. Kf4 {[%clk 0:00:16]}  Bf7 {[%clk 0:00:17]} 51. e6 {[%clk 0:00:15]}  Be8 {[%clk 0:00:18]} 52. g5 {[%clk 0:00:15]}  Rf1+ {[%clk 0:00:18]} 53. Ke5 {[%clk 0:00:15]}  Re1+ {[%clk 0:00:18]} 54. Kf4 {[%clk 0:00:15]}  Rf1+ {[%clk 0:00:18]} 55. Rf3 {[%clk 0:00:15]}  hxg5+ {[%clk 0:00:16]} 56. hxg5 {[%clk 0:00:15]}  Rh1 {[%clk 0:00:17]} 57. Re3 {[%clk 0:00:14]}  Rh4+ {[%clk 0:00:17]} 58. Ke5 {[%clk 0:00:14]}  Rh5 {[%clk 0:00:15]} 59. f6+ {[%clk 0:00:14]}  Kd8 {[%clk 0:00:16]} 60. Kd6 {[%clk 0:00:14]}  Rh4 {[%clk 0:00:14]} 61. f7 {[%clk 0:00:11]}  Rd4+ {[%clk 0:00:14]} 62. Ke5 {[%clk 0:00:11]}  Bxf7 {[%clk 0:00:14]} 63. Kxd4 {[%clk 0:00:11]}  Be8 {[%clk 0:00:15]} 64. Ke5 {[%clk 0:00:11]}  Ke7 {[%clk 0:00:16]} 65. Rd3 {[%clk 0:00:09]}  Ra7 {[%clk 0:00:14]} 66. Rd7+ {[%clk 0:00:09]}  Bxd7 {[%clk 0:00:14]} 67. exd7 {[%clk 0:00:08]}  Kd8 {[%clk 0:00:14]} 68. Kd6 {[%clk 0:00:08]}  Ra6 {[%clk 0:00:14]} 69. g6 {[%clk 0:00:07]}  Rb6 {[%clk 0:00:15]} 70. g7 {[%clk 0:00:07]}  Rxc6+ {[%clk 0:00:15]} 71. Kxc6 {[%clk 0:00:07]}  Ke7 {[%clk 0:00:15]} 72. g8=Q {[%clk 0:00:07]}  Kf6 {[%clk 0:00:15]} 73. Qf8+ {[%clk 0:00:08]}  Kg6 {[%clk 0:00:15]} 74. Qd6+ {[%clk 0:00:07]}  Kh7 {[%clk 0:00:16]} 75. d8=Q {[%clk 0:00:07]}  Kg7 {[%clk 0:00:17]} 76. Q8e7+ {[%clk 0:00:08]}  Kg8 {[%clk 0:00:17]} 77. Qdd8# {[%clk 0:00:09]} 1-0


[Site "https://www.chess.com"]